Workbook

Sheet How To Use This Tool
A6: How to Use the CSRHub CSRD Calculator | I6: CSRD Materiality Threshold Control
I7: Customize Your CSRD Materiality Level | J7: 0.87
A8: Background | I8: CSRD Compliance Results
A9: CSRD (The Corporate Sustainability Reporting Directive) has been enacted by the European Union (EU) to encourage higher quality ESG reporting by entities who operate in the EU. At present, entities must only report if they are in "material compliance" with CSRD's requirements. We expect in the future that entities will be required to "correct" their performance in areas where they fail to comply or "explain" why they do not. | I9: Company Name | J9: ='CSRD Score Overview'!B14 -> Affected communities - Communities’ civil and political rights | K9: ='CSRD Score Overview'!C14 -> Affected communities - Communities' economic social and cultural rights | L9: ='CSRD Score Overview'!D14 -> Affected communities - Rights of indigenous peoples | M9: ='CSRD Score Overview'!E14 -> Biodiversity and ecosystems - Impacts and dependencies on ecosystem services | N9: ='CSRD Score Overview'!F14 -> Biodiversity and ecosystems - Impacts on the extent and condition of ecosystems | O9: ='CSRD Score Overview'!G14 -> Biodiversity and ecosystems - Impacts on the state of species | P9: ='CSRD Score Overview'!H14 -> Business Conduct - Animal welfare | Q9: ='CSRD Score Overview'!I14 -> Business Conduct - Corporate culture | R9: ='CSRD Score Overview'!J14 -> Business Conduct - Corruption and bribery
I10: ='CSRD Score Overview'!A15 -> Tesla Motors, Inc. | J10: ='CSRD Score Overview'!B15 -> 50.046 | K10: ='CSRD Score Overview'!C15 -> 50.034 | L10: ='CSRD Score Overview'!D15 -> 50.034 | M10: ='CSRD Score Overview'!E15 -> 48.868 | N10: ='CSRD Score Overview'!F15 -> 48.868 | O10: ='CSRD Score Overview'!G15 -> 48.868 | P10: ='CSRD Score Overview'!H15 -> 47.81 | Q10: ='CSRD Score Overview'!I15 -> 46.4125 | R10: ='CSRD Score Overview'!J15 -> 46.725
I11: Comparator Average | J11: ='CSRD Score Overview'!B10 -> 55.682 | K11: ='CSRD Score Overview'!C10 -> 55.17744444 | L11: ='CSRD Score Overview'!D10 -> 55.17744444 | M11: ='CSRD Score Overview'!E10 -> 59.05577778 | N11: ='CSRD Score Overview'!F10 -> 59.05577778 | O11: ='CSRD Score Overview'!G10 -> 59.05577778 | P11: ='CSRD Score Overview'!H10 -> 53.00566667 | Q11: ='CSRD Score Overview'!I10 -> 52.65622222 | R11: ='CSRD Score Overview'!J10 -> 52.59555556
I12: Materiality Test | J12: =IF(J10<J11*$J$7,"Below","Pass") -> Pass | K12: =IF(K10<K11*$J$7,"Below","Pass") -> Pass | L12: Pass | M12: Below | N12: Below | O12: Below | P12: Pass | Q12: Pass | R12: Pass
A14: 35 Areas of Focus Have Been Mapped to ESG Topics
A15: At present, CSRD focuses on 35 distinct areas of sustainability performance. The regulations that underly it refer to hundreds of indicators that entities can test to determine their level of compliance. We have mapped the top 35 areas to the 12 sustainability-related topics that CSRHub rates. This mapping is shown on the CSRD Mapping tab. | I15: Company Name | J15: ='CSRD Score Overview'!K14 -> Business Conduct - Management of relationships with suppliers including payment practices | K15: ='CSRD Score Overview'!L14 -> Business Conduct - Political engagement | L15: ='CSRD Score Overview'!M14 -> Business Conduct - Protection of whistleblowers | M15: ='CSRD Score Overview'!N14 -> Circular economy - Resource outflows, related to products and services | N15: ='CSRD Score Overview'!O14 -> Circular economy - Resources inflows, including resource use | O15: ='CSRD Score Overview'!P14 -> Circular economy - Waste | P15: ='CSRD Score Overview'!Q14 -> Climate change - Climate change adaptation | Q15: ='CSRD Score Overview'!R14 -> Climate change - Climate change mitigation | R15: ='CSRD Score Overview'!S14 -> Climate change - Energy
I16: ='CSRD Score Overview'!A15 -> Tesla Motors, Inc. | J16: ='CSRD Score Overview'!K15 -> 48.6 | K16: ='CSRD Score Overview'!L15 -> 45.841 | L16: ='CSRD Score Overview'!M15 -> 47.985 | M16: ='CSRD Score Overview'!N15 -> 49.876 | N16: ='CSRD Score Overview'!O15 -> 49.728 | O16: ='CSRD Score Overview'!P15 -> 49.728 | P16: ='CSRD Score Overview'!Q15 -> 52.488 | Q16: ='CSRD Score Overview'!R15 -> 52.488 | R16: ='CSRD Score Overview'!S15 -> 52.488
A17: The Enter Company Names Tab | I17: Comparator Average | J17: ='CSRD Score Overview'!K10 -> 55.77644444 | K17: ='CSRD Score Overview'!L10 -> 52.53744444 | L17: ='CSRD Score Overview'!M10 -> 52.93777778 | M17: ='CSRD Score Overview'!N10 -> 57.792 | N17: ='CSRD Score Overview'!O10 -> 58.22311111 | O17: ='CSRD Score Overview'!P10 -> 58.22311111 | P17: ='CSRD Score Overview'!Q10 -> 57.74833333 | Q17: ='CSRD Score Overview'!R10 -> 57.74833333 | R17: ='CSRD Score Overview'!S10 -> 57.74833333
A18: This tab is the starting point. It allows you search the names of the companies you wish to evaluate. Please enter in the date of data you are wanting to evaluate. You can verify the company name in column J. The instructions for matching the correct entity and entering the correct date can be found in cells A4-A10. | I18: Materiality Test | J18: =IF(J16<J17*$J$7,"Below","Pass") -> Pass | K18: Pass | L18: Pass | M18: Below | N18: Below | O18: Below | P18: Pass | Q18: Pass | R18: Pass
A20: The CSRD Score Overview Tab
A21: This tab contains an estimate of the relative performance for the studied companies across the 35 CSRD focus areas. The "focus company" is the top and the "comparators" are below it. The average, best, and worst ratings numbers at the top of the sheet reference the comparators. The focus company is excluded. | I21: Company Name | J21: ='CSRD Score Overview'!T14 -> Consumers and end-users - Health and safety of consumers and/or end-users | K21: ='CSRD Score Overview'!U14 -> Consumers and end-users - Information-related impacts for consumers and/or end-users | L21: ='CSRD Score Overview'!V14 -> Consumers and end-users - Social inclusion of consumers and/or end-users | M21: ='CSRD Score Overview'!W14 -> Own workforce - Equal treatment and opportunities for all | N21: ='CSRD Score Overview'!X14 -> Own workforce - Working conditions (overall) | O21: ='CSRD Score Overview'!Y14 -> Pollution - Microplastics | P21: ='CSRD Score Overview'!Z14 -> Pollution - Pollution of air | Q21: ='CSRD Score Overview'!AA14 -> Pollution - Pollution of living organisms and food resources | R21: ='CSRD Score Overview'!AB14 -> Pollution - Pollution of soil
I22: ='CSRD Score Overview'!A15 -> Tesla Motors, Inc. | J22: ='CSRD Score Overview'!T15 -> 48.034 | K22: ='CSRD Score Overview'!U15 -> 47.998 | L22: ='CSRD Score Overview'!V15 -> 49.832 | M22: ='CSRD Score Overview'!W15 -> 47.916 | N22: ='CSRD Score Overview'!X15 -> 44.352 | O22: ='CSRD Score Overview'!Y15 -> 48.882 | P22: ='CSRD Score Overview'!Z15 -> 50.789 | Q22: ='CSRD Score Overview'!AA15 -> 48.882 | R22: ='CSRD Score Overview'!AB15 -> 48.875
I23: Comparator Average | J23: ='CSRD Score Overview'!T10 -> 53.70611111 | K23: ='CSRD Score Overview'!U10 -> 54.19344444 | L23: ='CSRD Score Overview'!V10 -> 55.46066667 | M23: ='CSRD Score Overview'!W10 -> 56.79155556 | N23: ='CSRD Score Overview'!X10 -> 52.81111111 | O23: ='CSRD Score Overview'!Y10 -> 58.17877778 | P23: ='CSRD Score Overview'!Z10 -> 58.0815 | Q23: ='CSRD Score Overview'!AA10 -> 58.17877778 | R23: ='CSRD Score Overview'!AB10 -> 58.61727778
I24: Materiality Test | J24: =IF(J22<J23*$J$7,"Below","Pass") -> Pass | K24: =IF(K22<K23*$J$7,"Below","Pass") -> Pass | L24: Pass | M24: Below | N24: Below | O24: Below | P24: Pass | Q24: Below | R24: =IF(R22<R23*$J$7,"Below","Pass") -> Below
A26: The CSRHub Ratings Tab
A27: This date is pulled from the Enter Company names tab when you click Calculate. The "focus company" is the top and the "comparators" are below it. The comparators average, best, and worst ratings are listed at the top of the sheet. The focus company is excluded. | I27: Company Name | J27: ='CSRD Score Overview'!AC14 -> Pollution - Pollution of water | K27: ='CSRD Score Overview'!AD14 -> Pollution - Substances of concern | L27: ='CSRD Score Overview'!AE14 -> Pollution - Substances of very high concern | M27: ='CSRD Score Overview'!AF14 -> Water and marine resources - Direct impact drivers of biodiversity loss | N27: ='CSRD Score Overview'!AG14 -> Water and marine resources - Marine resources | O27: ='CSRD Score Overview'!AH14 -> Water and marine resources - Water | P27: ='CSRD Score Overview'!AI14 -> Workers in the Value Chain - Equal treatment and opportunities for all | Q27: ='CSRD Score Overview'!AJ14 -> Workers in the Value Chain - Working conditions (overall)
I28: ='CSRD Score Overview'!A15 -> Tesla Motors, Inc. | J28: ='CSRD Score Overview'!AC15 -> 48.875 | K28: ='CSRD Score Overview'!AD15 -> 48.875 | L28: ='CSRD Score Overview'!AE15 -> 48.875 | M28: ='CSRD Score Overview'!AF15 -> 48.875 | N28: ='CSRD Score Overview'!AG15 -> 48.875 | O28: ='CSRD Score Overview'!AH15 -> 48.875 | P28: ='CSRD Score Overview'!AI15 -> 46.633 | Q28: ='CSRD Score Overview'!AJ15 -> 46.99
I29: Comparator Average | J29: ='CSRD Score Overview'!AC10 -> 58.61727778 | K29: ='CSRD Score Overview'!AD10 -> 58.61727778 | L29: ='CSRD Score Overview'!AE10 -> 58.61727778 | M29: ='CSRD Score Overview'!AF10 -> 58.61727778 | N29: ='CSRD Score Overview'!AG10 -> 58.61727778 | O29: ='CSRD Score Overview'!AH10 -> 58.61727778 | P29: ='CSRD Score Overview'!AI10 -> 54.98322222 | Q29: ='CSRD Score Overview'!AJ10 -> 55.21211111
I30: Materiality Test | J30: =IF(J28<J29*$J$7,"Below","Pass") -> Below | K30: =IF(K28<K29*$J$7,"Below","Pass") -> Below | L30: Below | M30: Below | N30: Below | O30: Below | P30: Below | Q30: Below
A32: Set Your threshold for Materiality and Use the Tool
A33: To the right at the top of the page is a cell to "Customize Your CSRD Materiality Level" for this tool. If you want to test if the focus company is in line with the average for its comparators, set the threshold at 100%. If you would accept the focus company being a certain percentage below the average for a CSRD Focus area, set the threshold to the desired percentage and click Calculate. To the right of these instructions, you will see five groups of comparisons between the focus company and the average of the comparators. When the focus company fails to meet the threshold you set, you will see a flag that says "Below." When it meets the threshold, the flag will say "Pass."
A42: What to Do, Next?
A43: When the focus company appears likely to fail the materiality test for a particular CSRD area, it should consider taking steps to rectify this issue.These steps could include:
A46: 1. Improve policies and practices in the area of concern.
A47: 2. Gather more data to allow better understanding of performance in the area.
A48: 3. Improve reporting to ratings groups and share relevant indicators.
A51: CSRHub's ratings are based on the views of hundreds of ratings groups. These groups typically rely on both formal and informal reporting from the entities they cover plus their own internal analysis techniques and models. If necessary, CSRHub can supply additional reports and tools to help improve reporting and strength an entity's engagement with rating sources.
A57: For more information on CSRHub’s methodology, please see this page on CSRHub’s web site.

Sheet Enter Company Names
R1: Controls for Fine Tuning Scope of Search
U2: Name | V2: Ticker | W2: URL | X2: ISIN
A3: Enter The Company Or Companies You Want To Study | N3: NA = Rating or information not available. This can also be due to a company with only partial ratings. We do not provide an overall score for partially rated companies. | R3: Set to include (I) or exclude (X) fully rated, partially rated and/or unrated companies from your search | T3: Fully Rated | U3: I | V3: I | W3: I | X3: I
A4: 1. Enter a company name, part of a company name, or a brand in column B, a ticker into column C, a web URL into column D, and/or an ISIN number into column E. | T4: Partially Rated | U4: I | V4: I | W4: I | X4: I
A5: 2. If the CSRHub name you want does not appear in column J, use the CSRHub name lookup tool (top menu, CSRHub…Company) to paste the right text company name into column J. | T5: Not Rated | U5: I | V5: I | W5: I | X5: I
A6: 3. The data in columns K to Q should help you double check that you have the right name match. The name in column J is the one used automatically on other sheets. | O6: Version: | P6: =CSRHubAPIVersionNumber() -> 3.3 | R6: Changes in the settings above will change the search parameter in cells F13-I13
A7: 4. If you need to lookup more than 30 companies, you can copy the formulas in row 44 down as far as you wish. | O7: Last Content Update: | P7: 2026-03-26
A8: 5. Use column A to store your internal identifier or version of the company name for later reference. You can change the scope of search using the box starting in column R. | O8: Last Code Update: | P8: =CSRHubAPIVersionDate() -> 2025-12-25 | S8: Month | T8: Year
A9: 6. Request a specific Month and Year of data, in cells S9 and T9. Choose Formulas from the top menu, then Calculate Sheet. This will allow our database to update the sheet. | O9: Includes MonetDB Mac Update | R9: Data Date | S9: February | T9: 2026
A10: 7. Enter your CSRHub site credentials (username/password) when directed.
A13: Top Line Summary | C13: =COUNT(N15:N212) & " Companies" -> 10 Companies | E13: Search scope parameters (see Column P) | F13: =IF(AND(U3="I",U4="I",U5="I"),"0",IF(AND(U3="I",U4="X",U5="X"),"1",IF(AND(U3="I",U4="I",U5="X"),"2",IF(AND(U3="X",U4="I",U5="X"),"3",IF(AND(U3="X",U4="X",U5="I"),"4",IF(AND(U3="X",U4="I",U5="I"),"5",IF(AND(U3="I",U4="X",U5="I"),"6","0"))))))) -> 0 | G13: =IF(AND(V3="I",V4="I",V5="I"),"0",IF(AND(V3="I",V4="X",V5="X"),"1",IF(AND(V3="I",V4="I",V5="X"),"2",IF(AND(V3="X",V4="I",V5="X"),"3",IF(AND(V3="X",V4="X",V5="I"),"4",IF(AND(V3="X",V4="I",V5="I"),"5",IF(AND(V3="I",V4="X",V5="I"),"6","0"))))))) -> 0 | H13: 0 | I13: 0 | J13: More instructions and examples are available online. | K13: Ways to Double Check the Name
A14: Internal ID (Optional) | B14: Enter Name | C14: Enter Ticker (No exchange code) | D14: Enter web URL | E14: Enter ISIN | F14: Simple Lookup (NA or blank = didn't work) | G14: Ticker Lookup (NA or blank = didn't work) | H14: URL Lookup (NA or blank = didn't work) | I14: ISIN Lookup (NA or blank = didn't work) | J14: Best Guess (replace using name lookup tool when NA) | K14: Country | L14: City | M14: Ticker | N14: # of Sources | O14: ISIN | P14: Industry | Q14: Overall Ratings
B15: Tesla | F15: =csrhubfindcompanyname($B15,0,F$13) -> Tesla Motors, Inc. | G15: =csrhubfindcompanyname($C15,3,G$13) -> NA | H15: =csrhubfindcompanyname($D15,5,H$13) -> NA | I15: =csrhubfindcompanyname($E15,4,I$13) -> NA | J15: =IF(I15="NA",IF(H15="NA",IF(F15="NA",IF(G15= "NA","NA",G15),F15),H15),I15) -> Tesla Motors, Inc. | K15: =csrhubcompanycountry(J15) -> USA | L15: =CSRHubCompanycity(J15) -> Palo Alto | M15: =CSRHubCompanyTicker(J15) -> TSLA | N15: =CSRHubDScount(J15) -> 66 | O15: =csrhubcompanyisin(J15) -> US88160R1014 | P15: =CSRHubCompanyIndustry(J15) -> Motor Vehicle Manufacturing | Q15: =CSRHubRating(J15) -> 47.5001
B16: Porsche | F16: =csrhubfindcompanyname($B16,0,F$13) -> Porsche AG | G16: NA | H16: NA | I16: NA | J16: Porsche AG | K16: =csrhubcompanycountry(J16) -> Germany | L16: =CSRHubCompanycity(J16) -> Stuttgart | M16: =CSRHubCompanyTicker(J16) -> DRPRY | N16: =CSRHubDScount(J16) -> 25 | O16: =csrhubcompanyisin(J16) -> DE000PAG9113 | P16: =CSRHubCompanyIndustry(J16) -> Motor Vehicle Manufacturing | Q16: =CSRHubRating(J16) -> 54.0027
B17: Volkswagen | F17: Volkswagen AG | G17: NA | H17: NA | I17: NA | J17: Volkswagen AG | K17: =csrhubcompanycountry(J17) -> Germany | L17: Wolfsburg | M17: VOW3 | N17: 58 | O17: DE0007664039 | P17: Motor Vehicle Manufacturing | Q17: 58.446
B18: Rivian | F18: Rivian Automotive Inc | G18: NA | H18: NA | I18: NA | J18: Rivian Automotive Inc | K18: USA | L18: Irvine | M18: RIVN | N18: 33 | O18: US76954A1034 | P18: Motor Vehicle Manufacturing | Q18: 48.5564
B19: Polestar | F19: Polestar Automotive Holding UK Plc | G19: NA | H19: NA | I19: NA | J19: Polestar Automotive Holding UK Plc | K19: United Kingdom | L19: Dunstable | M19: PSNY | N19: 18 | O19: US7311052010 | P19: Other Services | Q19: 52.5212
B20: Ford | F20: Ford Motor Company | G20: NA | H20: NA | I20: NA | J20: Ford Motor Company | K20: USA | L20: Dearborn | M20: F | N20: 75 | O20: US3453708600 | P20: Motor Vehicle Manufacturing | Q20: 60.0919
B21: Hyundai | F21: Hyundai Motor Co. | G21: NA | H21: =csrhubfindcompanyname($D21,5,H$13) -> NA | I21: NA | J21: =IF(I21="NA",IF(H21="NA",IF(F21="NA",IF(G21= "NA","NA",G21),F21),H21),I21) -> Hyundai Motor Co. | K21: South Korea | L21: Seoul | M21: 5380 | N21: 51 | O21: KR7005380001 | P21: Motor Vehicle Manufacturing | Q21: 60.0019
B22: Kia | F22: Kia Motors Corporation | G22: NA | H22: =csrhubfindcompanyname($D22,5,H$13) -> NA | I22: NA | J22: =IF(I22="NA",IF(H22="NA",IF(F22="NA",IF(G22= "NA","NA",G22),F22),H22),I22) -> Kia Motors Corporation | K22: South Korea | L22: Seoul | M22: 270 | N22: 42 | O22: KR7000270009 | P22: Motor Vehicle Manufacturing | Q22: 59.536
B23: BMW | F23: BMW | G23: NA | H23: NA | I23: NA | J23: BMW | K23: Germany | L23: Munich | M23: BMW | N23: 57 | O23: DE0005190003 | P23: Motor Vehicle Manufacturing | Q23: 59.6044
B24: Nissan | F24: NISSAN MOTOR CO.,LTD. | G24: NA | H24: NA | I24: NA | J24: NISSAN MOTOR CO.,LTD. | K24: Japan | L24: Chuo-ku | M24: 7201 | N24: 51 | O24: JP3672400003 | P24: Motor Vehicle Manufacturing | Q24: 58.5866
F25: NA | G25: NA | H25: NA | I25: NA | J25: NA | N25: NA | P25: NA | Q25: NA
F26: NA | G26: NA | H26: NA | I26: NA | J26: NA | N26: NA | P26: NA | Q26: NA
F27: NA | G27: NA | H27: NA | I27: NA | J27: NA | N27: NA | P27: NA | Q27: NA
F28: NA | G28: NA | H28: NA | I28: NA | J28: NA | N28: NA | P28: NA | Q28: NA
F29: NA | G29: NA | H29: NA | I29: NA | J29: NA | N29: NA | P29: NA | Q29: NA
F30: NA | G30: NA | H30: NA | I30: NA | J30: NA | N30: NA | P30: NA | Q30: NA
F31: NA | G31: NA | H31: NA | I31: NA | J31: NA | N31: NA | P31: NA | Q31: NA
F32: NA | G32: NA | H32: NA | I32: NA | J32: NA | N32: NA | P32: NA | Q32: NA
F33: NA | G33: NA | H33: NA | I33: NA | J33: NA | N33: NA | P33: NA | Q33: NA
F34: NA | G34: NA | H34: NA | I34: NA | J34: NA | N34: NA | P34: NA | Q34: NA
F35: NA | G35: NA | H35: NA | I35: NA | J35: NA | N35: NA | P35: NA | Q35: NA
F36: NA | G36: NA | H36: NA | I36: NA | J36: NA | N36: NA | P36: NA | Q36: NA
F37: NA | G37: NA | H37: NA | I37: NA | J37: NA | N37: NA | P37: NA | Q37: NA
F38: NA | G38: NA | H38: NA | I38: NA | J38: NA | N38: NA | P38: NA | Q38: NA
F39: NA | G39: NA | H39: NA | I39: NA | J39: NA | N39: NA | P39: NA | Q39: NA
F40: NA | G40: NA | H40: NA | I40: NA | J40: NA | N40: NA | P40: NA | Q40: NA
F41: NA | G41: NA | H41: NA | I41: NA | J41: NA | N41: NA | P41: NA | Q41: NA
F42: NA | G42: NA | H42: NA | I42: NA | J42: NA | N42: NA | P42: NA | Q42: NA
F43: NA | G43: NA | H43: NA | I43: NA | J43: NA | N43: NA | P43: NA | Q43: NA
F44: NA | G44: NA | H44: NA | I44: NA | J44: NA | N44: NA | P44: NA | Q44: NA

Sheet CSRHub Ratings
A3: Instructions for CSRD Calculator (Continued)
A4: 1. The company names will pull from Enter Names sheet. Verify date is correct when you click Calculate.
A5: 2. Clear out any old ratings numbers (cell C15 to N15 and down). When prompted, click "No" to not delete query.
A6: 3. Go to CSRHub menu and choose third button (Rebuild Data on This Sheet). Then do another Excel calculation to update averages.
B10: Average Rating | C10: =AVERAGEIF(C16:C211,"<>NA") -> 54.29555556 | D10: =AVERAGEIF(D16:D211,"<>NA") -> 59.34111111 | E10: 54.68555556 | F10: 52.73222222 | G10: 53.20222222 | H10: 51.71666667 | I10: 57.19222222 | J10: 58.99666667 | K10: 59.14444444 | L10: 52.16777778 | M10: 53.02333333 | N10: 54.15333333
B11: Best Rating | C11: =MAX(C16:C211) -> 58.01 | D11: =MAX(D16:D211) -> 62.83 | E11: 58.61 | F11: 57.04 | G11: 58.18 | H11: 55.94 | I11: 62.37 | J11: 65.34 | K11: 66.63 | L11: 57.11 | M11: 55.81 | N11: 57.96
B12: Worst Rating | C12: =MIN(C16:C211) -> 46.42 | D12: =MIN(D16:D211) -> 53.03 | E12: 50.49 | F12: 46.8 | G12: 43.82 | H12: 43.68 | I12: 49.59 | J12: 47.72 | K12: 44.11 | L12: 47.93 | M12: 50.55 | N12: 50.7
A14: PUT YOUR INTERNAL COMPANY IDENTIFIER HERE | B14: PUT COMPANY NAME OR TICKER HERE | C14: ="Community Dev & Philanthropy Rating (" & 'Enter Company Names'!$S$9 & " " & 'Enter Company Names'!$T$9 & ")" -> Community Dev & Philanthropy Rating (February 2026) | D14: ="Human Rights & Supply Chain Rating (" & 'Enter Company Names'!$S$9 & " " & 'Enter Company Names'!$T$9 & ")" -> Human Rights & Supply Chain Rating (February 2026) | E14: ="Product Rating (" & 'Enter Company Names'!$S$9 & " " & 'Enter Company Names'!$T$9 & ")" -> Product Rating (February 2026) | F14: ="Compensation & Benefits Rating (" & 'Enter Company Names'!$S$9 & " " & 'Enter Company Names'!$T$9 & ")" -> Compensation & Benefits Rating (February 2026) | G14: ="Diversity & Labor Rights Rating (" & 'Enter Company Names'!$S$9 & " " & 'Enter Company Names'!$T$9 & ")" -> Diversity & Labor Rights Rating (February 2026) | H14: ="Training, Health & Safety Rating (" & 'Enter Company Names'!$S$9 & " " & 'Enter Company Names'!$T$9 & ")" -> Training, Health & Safety Rating (February 2026) | I14: ="Energy & Climate Change Rating (" & 'Enter Company Names'!$S$9 & " " & 'Enter Company Names'!$T$9 & ")" -> Energy & Climate Change Rating (February 2026) | J14: ="Environment Policy & Reporting Rating (" & 'Enter Company Names'!$S$9 & " " & 'Enter Company Names'!$T$9 & ")" -> Environment Policy & Reporting Rating (February 2026) | K14: ="Resource Management Rating (" & 'Enter Company Names'!$S$9 & " " & 'Enter Company Names'!$T$9 & ")" -> Resource Management Rating (February 2026) | L14: ="Board Rating (" & 'Enter Company Names'!$S$9 & " " & 'Enter Company Names'!$T$9 & ")" -> Board Rating (February 2026) | M14: ="Leadership Ethics Rating (" & 'Enter Company Names'!$S$9 & " " & 'Enter Company Names'!$T$9 & ")" -> Leadership Ethics Rating (February 2026) | N14: ="Transparency & Reporting Rating (" & 'Enter Company Names'!$S$9 & " " & 'Enter Company Names'!$T$9 & ")" -> Transparency & Reporting Rating (February 2026)
B15: ='Enter Company Names'!J15 -> Tesla Motors, Inc. | C15: 50.2 | D15: 50.32 | E15: 49.22 | F15: 45.02 | G15: 43.6 | H15: 45.94 | I15: 54.12 | J15: 47.74 | K15: 50.56 | L15: 45.15 | M15: 48.3 | N15: 45.76
B16: ='Enter Company Names'!J16 -> Porsche AG | C16: 54.1 | D16: 56.84 | E16: 51.7 | F16: 53.9 | G16: 51.87 | H16: 50.16 | I16: 49.6 | J16: 51.92 | K16: 51.2 | L16: 49.94 | M16: 51.07 | N16: 51.91
B17: ='Enter Company Names'!J17 -> Volkswagen AG | C17: 54.6 | D17: 58.8 | E17: 56.11 | F17: 50.2 | G17: 51.92 | H17: 50.49 | I17: 57.61 | J17: 60.15 | K17: 62.34 | L17: 48.72 | M17: 50.55 | N17: 50.7
B18: ='Enter Company Names'!J18 -> Rivian Automotive Inc | C18: 49.98 | D18: 53.03 | E18: 50.49 | F18: 46.8 | G18: 43.82 | H18: 43.68 | I18: 54.73 | J18: 47.72 | K18: 44.11 | L18: 50.19 | M18: 52.27 | N18: 51.25
B19: ='Enter Company Names'!J19 -> Polestar Automotive Holding UK Plc | C19: 46.42 | D19: 55.83 | E19: 54.1 | F19: 47.44 | G19: 49.23 | H19: 49.85 | I19: 49.59 | J19: 48.34 | K19: 47.49 | L19: 47.93 | M19: 54.96 | N19: 55.38
B20: ='Enter Company Names'!J20 -> Ford Motor Company | C20: 58.01 | D20: 62.74 | E20: 53.77 | F20: 55.15 | G20: 55.97 | H20: 52.3 | I20: 61.94 | J20: 65.34 | K20: 66.12 | L20: 57.11 | M20: 55.81 | N20: 57.96
B21: ='Enter Company Names'!J21 -> Hyundai Motor Co. | C21: 57.59 | D21: 62.83 | E21: 58.61 | F21: 57.04 | G21: 58.18 | H21: 55.94 | I21: 59.41 | J21: 64.77 | K21: 66.63 | L21: 54.78 | M21: 53.71 | N21: 56.59
B22: ='Enter Company Names'!J22 -> Kia Motors Corporation | C22: 54.87 | D22: 61.23 | E22: 57.2 | F22: 56.4 | G22: 56.62 | H22: 55.49 | I22: 57.65 | J22: 64.1 | K22: 64.93 | L22: 54.88 | M22: 52.8 | N22: 55.69
B23: ='Enter Company Names'!J23 -> BMW | C23: 57.71 | D23: 61.62 | E23: 55.98 | F23: 56.56 | G23: 56.06 | H23: 53.38 | I23: 61.83 | J23: 63.35 | K23: 64.9 | L23: 51.36 | M23: 53.03 | N23: 53.67
B24: ='Enter Company Names'!J24 -> NISSAN MOTOR CO.,LTD. | C24: 55.38 | D24: 61.15 | E24: 54.21 | F24: 51.1 | G24: 55.15 | H24: 54.16 | I24: 62.37 | J24: 65.28 | K24: 64.58 | L24: 54.6 | M24: 53.01 | N24: 54.23

Sheet CSRD Score Overview
A4: Instructions for CSRD Calculator (Continued)
A5: 1. The company names will pull from Enter Company Names sheet.
A6: 2. Click "Calculate" to update CSRHub scores applied to CSRD topics.
A9: ="CSRD Score Overview For "&A15&"" -> CSRD Score Overview For Tesla Motors, Inc. | B9: =B14 -> Affected communities - Communities’ civil and political rights | C9: =C14 -> Affected communities - Communities' economic social and cultural rights | D9: Affected communities - Rights of indigenous peoples | E9: Biodiversity and ecosystems - Impacts and dependencies on ecosystem services | F9: Biodiversity and ecosystems - Impacts on the extent and condition of ecosystems | G9: Biodiversity and ecosystems - Impacts on the state of species | H9: Business Conduct - Animal welfare | I9: Business Conduct - Corporate culture | J9: Business Conduct - Corruption and bribery | K9: Business Conduct - Management of relationships with suppliers including payment practices | L9: Business Conduct - Political engagement | M9: Business Conduct - Protection of whistleblowers | N9: Circular economy - Resource outflows, related to products and services | O9: Circular economy - Resources inflows, including resource use | P9: Circular economy - Waste | Q9: Climate change - Climate change adaptation | R9: Climate change - Climate change mitigation | S9: Climate change - Energy | T9: Consumers and end-users - Health and safety of consumers and/or end-users | U9: Consumers and end-users - Information-related impacts for consumers and/or end-users | V9: Consumers and end-users - Social inclusion of consumers and/or end-users | W9: Own workforce - Equal treatment and opportunities for all | X9: Own workforce - Working conditions (overall) | Y9: Pollution - Microplastics | Z9: Pollution - Pollution of air | AA9: Pollution - Pollution of living organisms and food resources | AB9: Pollution - Pollution of soil | AC9: Pollution - Pollution of water | AD9: Pollution - Substances of concern | AE9: Pollution - Substances of very high concern | AF9: Water and marine resources - Direct impact drivers of biodiversity loss | AG9: Water and marine resources - Marine resources | AH9: Water and marine resources - Water | AI9: Workers in the Value Chain - Equal treatment and opportunities for all | AJ9: Workers in the Value Chain - Working conditions (overall)
A10: Average Rating | B10: =AVERAGEIF(B16:B217,"<>0") -> 55.682 | C10: =AVERAGEIF(C16:C217,"<>0") -> 55.17744444 | D10: 55.17744444 | E10: 59.05577778 | F10: 59.05577778 | G10: 59.05577778 | H10: 53.00566667 | I10: 52.65622222 | J10: 52.59555556 | K10: 55.77644444 | L10: 52.53744444 | M10: 52.93777778 | N10: 57.792 | O10: 58.22311111 | P10: 58.22311111 | Q10: 57.74833333 | R10: 57.74833333 | S10: 57.74833333 | T10: 53.70611111 | U10: 54.19344444 | V10: 55.46066667 | W10: 56.79155556 | X10: 52.81111111 | Y10: 58.17877778 | Z10: 58.0815 | AA10: 58.17877778 | AB10: 58.61727778 | AC10: 58.61727778 | AD10: 58.61727778 | AE10: 58.61727778 | AF10: 58.61727778 | AG10: 58.61727778 | AH10: 58.61727778 | AI10: 54.98322222 | AJ10: 55.21211111
A11: Best Rating | B11: =MAX(B16:B217) -> 59.209 | C11: =MAX(C16:C217) -> 58.736 | D11: 58.736 | E11: 65.652 | F11: 65.652 | G11: 65.652 | H11: 55.674 | I11: 56.411 | J11: 56.46 | K11: 59.012 | L11: 56.935 | M11: 55.94 | N11: 64.038 | O11: 64.654 | P11: 64.654 | Q11: 63.173 | R11: 63.173 | S11: 63.173 | T11: 56.894 | U11: 57.024 | V11: 59.046 | W11: 60.742 | X11: 57.504 | Y11: 64.096 | Z11: 63.5185 | AA11: 64.096 | AB11: 64.805 | AC11: 64.805 | AD11: 64.805 | AE11: 64.805 | AF11: 64.805 | AG11: 64.805 | AH11: 64.805 | AI11: 59.1885 | AJ11: 59.368
A12: Worst Rating | B12: =MIN(B16:B217) -> 50.097 | C12: =MIN(C16:C217) -> 49.156 | D12: 49.156 | E12: 46.276 | F12: 46.276 | G12: 46.276 | H12: 50.559 | I12: 49.8635 | J12: 49.635 | K12: 52.37 | L12: 49.284 | M12: 50.367 | N12: 46.385 | O12: 46.108 | P12: 46.108 | Q12: 49.13 | R12: 49.13 | S12: 49.13 | T12: 49.56 | U12: 51.074 | V12: 50.794 | W12: 49.942 | X12: 44.388 | Y12: 47.191 | Z12: 49.0005 | AA12: 47.191 | AB12: 46.7335 | AC12: 46.7335 | AD12: 46.7335 | AE12: 46.7335 | AF12: 46.7335 | AG12: 46.7335 | AH12: 46.7335 | AI12: 47.4625 | AJ12: 47.462
A14: Company Name | B14: ='CSRD Mapping'!B15 -> Affected communities - Communities’ civil and political rights | C14: ='CSRD Mapping'!B16 -> Affected communities - Communities' economic social and cultural rights | D14: ='CSRD Mapping'!B17 -> Affected communities - Rights of indigenous peoples | E14: ='CSRD Mapping'!$B18 -> Biodiversity and ecosystems - Impacts and dependencies on ecosystem services | F14: ='CSRD Mapping'!$B19 -> Biodiversity and ecosystems - Impacts on the extent and condition of ecosystems | G14: ='CSRD Mapping'!$B20 -> Biodiversity and ecosystems - Impacts on the state of species | H14: ='CSRD Mapping'!$B21 -> Business Conduct - Animal welfare | I14: ='CSRD Mapping'!$B22 -> Business Conduct - Corporate culture | J14: ='CSRD Mapping'!$B23 -> Business Conduct - Corruption and bribery | K14: ='CSRD Mapping'!$B24 -> Business Conduct - Management of relationships with suppliers including payment practices | L14: ='CSRD Mapping'!$B25 -> Business Conduct - Political engagement | M14: ='CSRD Mapping'!$B26 -> Business Conduct - Protection of whistleblowers | N14: ='CSRD Mapping'!$B27 -> Circular economy - Resource outflows, related to products and services | O14: ='CSRD Mapping'!$B28 -> Circular economy - Resources inflows, including resource use | P14: ='CSRD Mapping'!$B29 -> Circular economy - Waste | Q14: ='CSRD Mapping'!$B30 -> Climate change - Climate change adaptation | R14: ='CSRD Mapping'!$B31 -> Climate change - Climate change mitigation | S14: ='CSRD Mapping'!$B32 -> Climate change - Energy | T14: ='CSRD Mapping'!$B33 -> Consumers and end-users - Health and safety of consumers and/or end-users | U14: ='CSRD Mapping'!$B34 -> Consumers and end-users - Information-related impacts for consumers and/or end-users | V14: ='CSRD Mapping'!$B35 -> Consumers and end-users - Social inclusion of consumers and/or end-users | W14: ='CSRD Mapping'!$B36 -> Own workforce - Equal treatment and opportunities for all | X14: ='CSRD Mapping'!$B37 -> Own workforce - Working conditions (overall) | Y14: ='CSRD Mapping'!$B38 -> Pollution - Microplastics | Z14: ='CSRD Mapping'!$B39 -> Pollution - Pollution of air | AA14: ='CSRD Mapping'!$B40 -> Pollution - Pollution of living organisms and food resources | AB14: ='CSRD Mapping'!$B41 -> Pollution - Pollution of soil | AC14: ='CSRD Mapping'!$B42 -> Pollution - Pollution of water | AD14: ='CSRD Mapping'!$B43 -> Pollution - Substances of concern | AE14: ='CSRD Mapping'!$B44 -> Pollution - Substances of very high concern | AF14: ='CSRD Mapping'!$B45 -> Water and marine resources - Direct impact drivers of biodiversity loss | AG14: ='CSRD Mapping'!$B46 -> Water and marine resources - Marine resources | AH14: ='CSRD Mapping'!$B47 -> Water and marine resources - Water | AI14: ='CSRD Mapping'!$B48 -> Workers in the Value Chain - Equal treatment and opportunities for all | AJ14: ='CSRD Mapping'!$B49 -> Workers in the Value Chain - Working conditions (overall)
A15: ='Enter Company Names'!J15 -> Tesla Motors, Inc. | B15: =SUMPRODUCT('CSRHub Ratings'!$C15:$N15,'CSRD Mapping'!$C$15:$N$15) -> 50.046 | C15: =SUMPRODUCT('CSRHub Ratings'!$C15:$N15,'CSRD Mapping'!$C$16:$N$16) -> 50.034 | D15: =SUMPRODUCT('CSRHub Ratings'!$C15:$N15,'CSRD Mapping'!$C$17:$N$17) -> 50.034 | E15: =SUMPRODUCT('CSRHub Ratings'!$C15:$N15,'CSRD Mapping'!$C$18:$N$18) -> 48.868 | F15: =SUMPRODUCT('CSRHub Ratings'!$C15:$N15,'CSRD Mapping'!$C$19:$N$19) -> 48.868 | G15: =SUMPRODUCT('CSRHub Ratings'!$C15:$N15,'CSRD Mapping'!$C$20:$N$20) -> 48.868 | H15: =SUMPRODUCT('CSRHub Ratings'!$C15:$N15,'CSRD Mapping'!$C$21:$N$21) -> 47.81 | I15: =SUMPRODUCT('CSRHub Ratings'!$C15:$N15,'CSRD Mapping'!$C$22:$N$22) -> 46.4125 | J15: =SUMPRODUCT('CSRHub Ratings'!$C15:$N15,'CSRD Mapping'!$C$23:$N$23) -> 46.725 | K15: =SUMPRODUCT('CSRHub Ratings'!$C15:$N15,'CSRD Mapping'!$C$24:$N$24) -> 48.6 | L15: =SUMPRODUCT('CSRHub Ratings'!$C15:$N15,'CSRD Mapping'!$C$25:$N$25) -> 45.841 | M15: =SUMPRODUCT('CSRHub Ratings'!$C15:$N15,'CSRD Mapping'!$C$26:$N$26) -> 47.985 | N15: =SUMPRODUCT('CSRHub Ratings'!$C15:$N15,'CSRD Mapping'!$C$27:$N$27) -> 49.876 | O15: =SUMPRODUCT('CSRHub Ratings'!$C15:$N15,'CSRD Mapping'!$C$28:$N$28) -> 49.728 | P15: =SUMPRODUCT('CSRHub Ratings'!$C15:$N15,'CSRD Mapping'!$C$29:$N$29) -> 49.728 | Q15: =SUMPRODUCT('CSRHub Ratings'!$C15:$N15,'CSRD Mapping'!$C$30:$N$30) -> 52.488 | R15: =SUMPRODUCT('CSRHub Ratings'!$C15:$N15,'CSRD Mapping'!$C$31:$N$31) -> 52.488 | S15: =SUMPRODUCT('CSRHub Ratings'!$C15:$N15,'CSRD Mapping'!$C$32:$N$32) -> 52.488 | T15: =SUMPRODUCT('CSRHub Ratings'!$C15:$N15,'CSRD Mapping'!$C$33:$N$33) -> 48.034 | U15: =SUMPRODUCT('CSRHub Ratings'!$C15:$N15,'CSRD Mapping'!$C$34:$N$34) -> 47.998 | V15: =SUMPRODUCT('CSRHub Ratings'!$C15:$N15,'CSRD Mapping'!$C$35:$N$35) -> 49.832 | W15: =SUMPRODUCT('CSRHub Ratings'!$C15:$N15,'CSRD Mapping'!$C$36:$N$36) -> 47.916 | X15: =SUMPRODUCT('CSRHub Ratings'!$C15:$N15,'CSRD Mapping'!$C$37:$N$37) -> 44.352 | Y15: =SUMPRODUCT('CSRHub Ratings'!$C15:$N15,'CSRD Mapping'!$C$38:$N$38) -> 48.882 | Z15: =SUMPRODUCT('CSRHub Ratings'!$C15:$N15,'CSRD Mapping'!$C$39:$N$39) -> 50.789 | AA15: =SUMPRODUCT('CSRHub Ratings'!$C15:$N15,'CSRD Mapping'!$C$40:$N$40) -> 48.882 | AB15: =SUMPRODUCT('CSRHub Ratings'!$C15:$N15,'CSRD Mapping'!$C$41:$N$41) -> 48.875 | AC15: =SUMPRODUCT('CSRHub Ratings'!$C15:$N15,'CSRD Mapping'!$C$42:$N$42) -> 48.875 | AD15: =SUMPRODUCT('CSRHub Ratings'!$C15:$N15,'CSRD Mapping'!$C$43:$N$43) -> 48.875 | AE15: =SUMPRODUCT('CSRHub Ratings'!$C15:$N15,'CSRD Mapping'!$C$44:$N$44) -> 48.875 | AF15: =SUMPRODUCT('CSRHub Ratings'!$C15:$N15,'CSRD Mapping'!$C$45:$N$45) -> 48.875 | AG15: =SUMPRODUCT('CSRHub Ratings'!$C15:$N15,'CSRD Mapping'!$C$46:$N$46) -> 48.875 | AH15: =SUMPRODUCT('CSRHub Ratings'!$C15:$N15,'CSRD Mapping'!$C$47:$N$47) -> 48.875 | AI15: =SUMPRODUCT('CSRHub Ratings'!$C15:$N15,'CSRD Mapping'!$C$48:$N$48) -> 46.633 | AJ15: =SUMPRODUCT('CSRHub Ratings'!$C15:$N15,'CSRD Mapping'!$C$49:$N$49) -> 46.99
A16: ='Enter Company Names'!J16 -> Porsche AG | B16: =SUMPRODUCT('CSRHub Ratings'!$C16:$N16,'CSRD Mapping'!$C$15:$N$15) -> 54.619 | C16: =SUMPRODUCT('CSRHub Ratings'!$C16:$N16,'CSRD Mapping'!$C$16:$N$16) -> 54.345 | D16: =SUMPRODUCT('CSRHub Ratings'!$C16:$N16,'CSRD Mapping'!$C$17:$N$17) -> 54.345 | E16: =SUMPRODUCT('CSRHub Ratings'!$C16:$N16,'CSRD Mapping'!$C$18:$N$18) -> 51.632 | F16: =SUMPRODUCT('CSRHub Ratings'!$C16:$N16,'CSRD Mapping'!$C$19:$N$19) -> 51.632 | G16: =SUMPRODUCT('CSRHub Ratings'!$C16:$N16,'CSRD Mapping'!$C$20:$N$20) -> 51.632 | H16: =SUMPRODUCT('CSRHub Ratings'!$C16:$N16,'CSRD Mapping'!$C$21:$N$21) -> 51.063 | I16: =SUMPRODUCT('CSRHub Ratings'!$C16:$N16,'CSRD Mapping'!$C$22:$N$22) -> 50.6415 | J16: =SUMPRODUCT('CSRHub Ratings'!$C16:$N16,'CSRD Mapping'!$C$23:$N$23) -> 50.505 | K16: =SUMPRODUCT('CSRHub Ratings'!$C16:$N16,'CSRD Mapping'!$C$24:$N$24) -> 53.546 | L16: =SUMPRODUCT('CSRHub Ratings'!$C16:$N16,'CSRD Mapping'!$C$25:$N$25) -> 50.363 | M16: =SUMPRODUCT('CSRHub Ratings'!$C16:$N16,'CSRD Mapping'!$C$26:$N$26) -> 50.957 | N16: =SUMPRODUCT('CSRHub Ratings'!$C16:$N16,'CSRD Mapping'!$C$27:$N$27) -> 51.422 | O16: =SUMPRODUCT('CSRHub Ratings'!$C16:$N16,'CSRD Mapping'!$C$28:$N$28) -> 51.444 | P16: =SUMPRODUCT('CSRHub Ratings'!$C16:$N16,'CSRD Mapping'!$C$29:$N$29) -> 51.444 | Q16: =SUMPRODUCT('CSRHub Ratings'!$C16:$N16,'CSRD Mapping'!$C$30:$N$30) -> 50.224 | R16: =SUMPRODUCT('CSRHub Ratings'!$C16:$N16,'CSRD Mapping'!$C$31:$N$31) -> 50.224 | S16: =SUMPRODUCT('CSRHub Ratings'!$C16:$N16,'CSRD Mapping'!$C$32:$N$32) -> 50.224 | T16: =SUMPRODUCT('CSRHub Ratings'!$C16:$N16,'CSRD Mapping'!$C$33:$N$33) -> 51.287 | U16: =SUMPRODUCT('CSRHub Ratings'!$C16:$N16,'CSRD Mapping'!$C$34:$N$34) -> 51.637 | V16: =SUMPRODUCT('CSRHub Ratings'!$C16:$N16,'CSRD Mapping'!$C$35:$N$35) -> 53.688 | W16: =SUMPRODUCT('CSRHub Ratings'!$C16:$N16,'CSRD Mapping'!$C$36:$N$36) -> 55.258 | X16: =SUMPRODUCT('CSRHub Ratings'!$C16:$N16,'CSRD Mapping'!$C$37:$N$37) -> 51.934 | Y16: =SUMPRODUCT('CSRHub Ratings'!$C16:$N16,'CSRD Mapping'!$C$38:$N$38) -> 51.66 | Z16: =SUMPRODUCT('CSRHub Ratings'!$C16:$N16,'CSRD Mapping'!$C$39:$N$39) -> 50.873 | AA16: =SUMPRODUCT('CSRHub Ratings'!$C16:$N16,'CSRD Mapping'!$C$40:$N$40) -> 51.66 | AB16: =SUMPRODUCT('CSRHub Ratings'!$C16:$N16,'CSRD Mapping'!$C$41:$N$41) -> 51.646 | AC16: =SUMPRODUCT('CSRHub Ratings'!$C16:$N16,'CSRD Mapping'!$C$42:$N$42) -> 51.646 | AD16: =SUMPRODUCT('CSRHub Ratings'!$C16:$N16,'CSRD Mapping'!$C$43:$N$43) -> 51.646 | AE16: =SUMPRODUCT('CSRHub Ratings'!$C16:$N16,'CSRD Mapping'!$C$44:$N$44) -> 51.646 | AF16: =SUMPRODUCT('CSRHub Ratings'!$C16:$N16,'CSRD Mapping'!$C$45:$N$45) -> 51.646 | AG16: =SUMPRODUCT('CSRHub Ratings'!$C16:$N16,'CSRD Mapping'!$C$46:$N$46) -> 51.646 | AH16: =SUMPRODUCT('CSRHub Ratings'!$C16:$N16,'CSRD Mapping'!$C$47:$N$47) -> 51.646 | AI16: =SUMPRODUCT('CSRHub Ratings'!$C16:$N16,'CSRD Mapping'!$C$48:$N$48) -> 53.572 | AJ16: =SUMPRODUCT('CSRHub Ratings'!$C16:$N16,'CSRD Mapping'!$C$49:$N$49) -> 53.345
A17: ='Enter Company Names'!J17 -> Volkswagen AG | B17: =SUMPRODUCT('CSRHub Ratings'!$C17:$N17,'CSRD Mapping'!$C$15:$N$15) -> 55.455 | C17: =SUMPRODUCT('CSRHub Ratings'!$C17:$N17,'CSRD Mapping'!$C$16:$N$16) -> 55.035 | D17: =SUMPRODUCT('CSRHub Ratings'!$C17:$N17,'CSRD Mapping'!$C$17:$N$17) -> 55.035 | E17: =SUMPRODUCT('CSRHub Ratings'!$C17:$N17,'CSRD Mapping'!$C$18:$N$18) -> 61.026 | F17: =SUMPRODUCT('CSRHub Ratings'!$C17:$N17,'CSRD Mapping'!$C$19:$N$19) -> 61.026 | G17: =SUMPRODUCT('CSRHub Ratings'!$C17:$N17,'CSRD Mapping'!$C$20:$N$20) -> 61.026 | H17: =SUMPRODUCT('CSRHub Ratings'!$C17:$N17,'CSRD Mapping'!$C$21:$N$21) -> 50.559 | I17: =SUMPRODUCT('CSRHub Ratings'!$C17:$N17,'CSRD Mapping'!$C$22:$N$22) -> 49.8635 | J17: =SUMPRODUCT('CSRHub Ratings'!$C17:$N17,'CSRD Mapping'!$C$23:$N$23) -> 49.635 | K17: =SUMPRODUCT('CSRHub Ratings'!$C17:$N17,'CSRD Mapping'!$C$24:$N$24) -> 53.88 | L17: =SUMPRODUCT('CSRHub Ratings'!$C17:$N17,'CSRD Mapping'!$C$25:$N$25) -> 49.284 | M17: =SUMPRODUCT('CSRHub Ratings'!$C17:$N17,'CSRD Mapping'!$C$26:$N$26) -> 50.367 | N17: =SUMPRODUCT('CSRHub Ratings'!$C17:$N17,'CSRD Mapping'!$C$27:$N$27) -> 60.252 | O17: =SUMPRODUCT('CSRHub Ratings'!$C17:$N17,'CSRD Mapping'!$C$28:$N$28) -> 60.656 | P17: =SUMPRODUCT('CSRHub Ratings'!$C17:$N17,'CSRD Mapping'!$C$29:$N$29) -> 60.656 | Q17: =SUMPRODUCT('CSRHub Ratings'!$C17:$N17,'CSRD Mapping'!$C$30:$N$30) -> 58.591 | R17: =SUMPRODUCT('CSRHub Ratings'!$C17:$N17,'CSRD Mapping'!$C$31:$N$31) -> 58.591 | S17: =SUMPRODUCT('CSRHub Ratings'!$C17:$N17,'CSRD Mapping'!$C$32:$N$32) -> 58.591 | T17: =SUMPRODUCT('CSRHub Ratings'!$C17:$N17,'CSRD Mapping'!$C$33:$N$33) -> 53.333 | U17: =SUMPRODUCT('CSRHub Ratings'!$C17:$N17,'CSRD Mapping'!$C$34:$N$34) -> 53.375 | V17: =SUMPRODUCT('CSRHub Ratings'!$C17:$N17,'CSRD Mapping'!$C$35:$N$35) -> 56.044 | W17: =SUMPRODUCT('CSRHub Ratings'!$C17:$N17,'CSRD Mapping'!$C$36:$N$36) -> 55.704 | X17: =SUMPRODUCT('CSRHub Ratings'!$C17:$N17,'CSRD Mapping'!$C$37:$N$37) -> 51.29 | Y17: =SUMPRODUCT('CSRHub Ratings'!$C17:$N17,'CSRD Mapping'!$C$38:$N$38) -> 59.999 | Z17: =SUMPRODUCT('CSRHub Ratings'!$C17:$N17,'CSRD Mapping'!$C$39:$N$39) -> 59.2605 | AA17: =SUMPRODUCT('CSRHub Ratings'!$C17:$N17,'CSRD Mapping'!$C$40:$N$40) -> 59.999 | AB17: =SUMPRODUCT('CSRHub Ratings'!$C17:$N17,'CSRD Mapping'!$C$41:$N$41) -> 60.5125 | AC17: =SUMPRODUCT('CSRHub Ratings'!$C17:$N17,'CSRD Mapping'!$C$42:$N$42) -> 60.5125 | AD17: =SUMPRODUCT('CSRHub Ratings'!$C17:$N17,'CSRD Mapping'!$C$43:$N$43) -> 60.5125 | AE17: =SUMPRODUCT('CSRHub Ratings'!$C17:$N17,'CSRD Mapping'!$C$44:$N$44) -> 60.5125 | AF17: =SUMPRODUCT('CSRHub Ratings'!$C17:$N17,'CSRD Mapping'!$C$45:$N$45) -> 60.5125 | AG17: =SUMPRODUCT('CSRHub Ratings'!$C17:$N17,'CSRD Mapping'!$C$46:$N$46) -> 60.5125 | AH17: =SUMPRODUCT('CSRHub Ratings'!$C17:$N17,'CSRD Mapping'!$C$47:$N$47) -> 60.5125 | AI17: =SUMPRODUCT('CSRHub Ratings'!$C17:$N17,'CSRD Mapping'!$C$48:$N$48) -> 53.784 | AJ17: =SUMPRODUCT('CSRHub Ratings'!$C17:$N17,'CSRD Mapping'!$C$49:$N$49) -> 54.243
A18: ='Enter Company Names'!J18 -> Rivian Automotive Inc | B18: =SUMPRODUCT('CSRHub Ratings'!$C18:$N18,'CSRD Mapping'!$C$15:$N$15) -> 51.124 | C18: =SUMPRODUCT('CSRHub Ratings'!$C18:$N18,'CSRD Mapping'!$C$16:$N$16) -> 50.819 | D18: =SUMPRODUCT('CSRHub Ratings'!$C18:$N18,'CSRD Mapping'!$C$17:$N$17) -> 50.819 | E18: =SUMPRODUCT('CSRHub Ratings'!$C18:$N18,'CSRD Mapping'!$C$18:$N$18) -> 46.276 | F18: =SUMPRODUCT('CSRHub Ratings'!$C18:$N18,'CSRD Mapping'!$C$19:$N$19) -> 46.276 | G18: =SUMPRODUCT('CSRHub Ratings'!$C18:$N18,'CSRD Mapping'!$C$20:$N$20) -> 46.276 | H18: =SUMPRODUCT('CSRHub Ratings'!$C18:$N18,'CSRD Mapping'!$C$21:$N$21) -> 51.309 | I18: =SUMPRODUCT('CSRHub Ratings'!$C18:$N18,'CSRD Mapping'!$C$22:$N$22) -> 50.489 | J18: =SUMPRODUCT('CSRHub Ratings'!$C18:$N18,'CSRD Mapping'!$C$23:$N$23) -> 51.23 | K18: =SUMPRODUCT('CSRHub Ratings'!$C18:$N18,'CSRD Mapping'!$C$24:$N$24) -> 52.37 | L18: =SUMPRODUCT('CSRHub Ratings'!$C18:$N18,'CSRD Mapping'!$C$25:$N$25) -> 50.712 | M18: =SUMPRODUCT('CSRHub Ratings'!$C18:$N18,'CSRD Mapping'!$C$26:$N$26) -> 52.062 | N18: =SUMPRODUCT('CSRHub Ratings'!$C18:$N18,'CSRD Mapping'!$C$27:$N$27) -> 46.385 | O18: =SUMPRODUCT('CSRHub Ratings'!$C18:$N18,'CSRD Mapping'!$C$28:$N$28) -> 46.108 | P18: =SUMPRODUCT('CSRHub Ratings'!$C18:$N18,'CSRD Mapping'!$C$29:$N$29) -> 46.108 | Q18: =SUMPRODUCT('CSRHub Ratings'!$C18:$N18,'CSRD Mapping'!$C$30:$N$30) -> 52.266 | R18: =SUMPRODUCT('CSRHub Ratings'!$C18:$N18,'CSRD Mapping'!$C$31:$N$31) -> 52.266 | S18: =SUMPRODUCT('CSRHub Ratings'!$C18:$N18,'CSRD Mapping'!$C$32:$N$32) -> 52.266 | T18: =SUMPRODUCT('CSRHub Ratings'!$C18:$N18,'CSRD Mapping'!$C$33:$N$33) -> 49.56 | U18: =SUMPRODUCT('CSRHub Ratings'!$C18:$N18,'CSRD Mapping'!$C$34:$N$34) -> 51.074 | V18: =SUMPRODUCT('CSRHub Ratings'!$C18:$N18,'CSRD Mapping'!$C$35:$N$35) -> 50.794 | W18: =SUMPRODUCT('CSRHub Ratings'!$C18:$N18,'CSRD Mapping'!$C$36:$N$36) -> 49.942 | X18: =SUMPRODUCT('CSRHub Ratings'!$C18:$N18,'CSRD Mapping'!$C$37:$N$37) -> 44.388 | Y18: =SUMPRODUCT('CSRHub Ratings'!$C18:$N18,'CSRD Mapping'!$C$38:$N$38) -> 47.191 | Z18: =SUMPRODUCT('CSRHub Ratings'!$C18:$N18,'CSRD Mapping'!$C$39:$N$39) -> 50.121 | AA18: =SUMPRODUCT('CSRHub Ratings'!$C18:$N18,'CSRD Mapping'!$C$40:$N$40) -> 47.191 | AB18: =SUMPRODUCT('CSRHub Ratings'!$C18:$N18,'CSRD Mapping'!$C$41:$N$41) -> 46.7335 | AC18: =SUMPRODUCT('CSRHub Ratings'!$C18:$N18,'CSRD Mapping'!$C$42:$N$42) -> 46.7335 | AD18: =SUMPRODUCT('CSRHub Ratings'!$C18:$N18,'CSRD Mapping'!$C$43:$N$43) -> 46.7335 | AE18: =SUMPRODUCT('CSRHub Ratings'!$C18:$N18,'CSRD Mapping'!$C$44:$N$44) -> 46.7335 | AF18: =SUMPRODUCT('CSRHub Ratings'!$C18:$N18,'CSRD Mapping'!$C$45:$N$45) -> 46.7335 | AG18: =SUMPRODUCT('CSRHub Ratings'!$C18:$N18,'CSRD Mapping'!$C$46:$N$46) -> 46.7335 | AH18: =SUMPRODUCT('CSRHub Ratings'!$C18:$N18,'CSRD Mapping'!$C$47:$N$47) -> 46.7335 | AI18: =SUMPRODUCT('CSRHub Ratings'!$C18:$N18,'CSRD Mapping'!$C$48:$N$48) -> 47.4625 | AJ18: =SUMPRODUCT('CSRHub Ratings'!$C18:$N18,'CSRD Mapping'!$C$49:$N$49) -> 47.462
A19: ='Enter Company Names'!J19 -> Polestar Automotive Holding UK Plc | B19: =SUMPRODUCT('CSRHub Ratings'!$C19:$N19,'CSRD Mapping'!$C$15:$N$15) -> 50.097 | C19: =SUMPRODUCT('CSRHub Ratings'!$C19:$N19,'CSRD Mapping'!$C$16:$N$16) -> 49.156 | D19: =SUMPRODUCT('CSRHub Ratings'!$C19:$N19,'CSRD Mapping'!$C$17:$N$17) -> 49.156 | E19: =SUMPRODUCT('CSRHub Ratings'!$C19:$N19,'CSRD Mapping'!$C$18:$N$18) -> 48 | F19: =SUMPRODUCT('CSRHub Ratings'!$C19:$N19,'CSRD Mapping'!$C$19:$N$19) -> 48 | G19: =SUMPRODUCT('CSRHub Ratings'!$C19:$N19,'CSRD Mapping'!$C$20:$N$20) -> 48 | H19: =SUMPRODUCT('CSRHub Ratings'!$C19:$N19,'CSRD Mapping'!$C$21:$N$21) -> 54.491 | I19: =SUMPRODUCT('CSRHub Ratings'!$C19:$N19,'CSRD Mapping'!$C$22:$N$22) -> 51.2235 | J19: =SUMPRODUCT('CSRHub Ratings'!$C19:$N19,'CSRD Mapping'!$C$23:$N$23) -> 51.445 | K19: =SUMPRODUCT('CSRHub Ratings'!$C19:$N19,'CSRD Mapping'!$C$24:$N$24) -> 55.392 | L19: =SUMPRODUCT('CSRHub Ratings'!$C19:$N19,'CSRD Mapping'!$C$25:$N$25) -> 50.081 | M19: =SUMPRODUCT('CSRHub Ratings'!$C19:$N19,'CSRD Mapping'!$C$26:$N$26) -> 54.257 | N19: =SUMPRODUCT('CSRHub Ratings'!$C19:$N19,'CSRD Mapping'!$C$27:$N$27) -> 49.558 | O19: =SUMPRODUCT('CSRHub Ratings'!$C19:$N19,'CSRD Mapping'!$C$28:$N$28) -> 48.982 | P19: =SUMPRODUCT('CSRHub Ratings'!$C19:$N19,'CSRD Mapping'!$C$29:$N$29) -> 48.982 | Q19: =SUMPRODUCT('CSRHub Ratings'!$C19:$N19,'CSRD Mapping'!$C$30:$N$30) -> 49.13 | R19: =SUMPRODUCT('CSRHub Ratings'!$C19:$N19,'CSRD Mapping'!$C$31:$N$31) -> 49.13 | S19: =SUMPRODUCT('CSRHub Ratings'!$C19:$N19,'CSRD Mapping'!$C$32:$N$32) -> 49.13 | T19: =SUMPRODUCT('CSRHub Ratings'!$C19:$N19,'CSRD Mapping'!$C$33:$N$33) -> 53.55 | U19: =SUMPRODUCT('CSRHub Ratings'!$C19:$N19,'CSRD Mapping'!$C$34:$N$34) -> 54.656 | V19: =SUMPRODUCT('CSRHub Ratings'!$C19:$N19,'CSRD Mapping'!$C$35:$N$35) -> 51.374 | W19: =SUMPRODUCT('CSRHub Ratings'!$C19:$N19,'CSRD Mapping'!$C$36:$N$36) -> 52.832 | X19: =SUMPRODUCT('CSRHub Ratings'!$C19:$N19,'CSRD Mapping'!$C$37:$N$37) -> 48.996 | Y19: =SUMPRODUCT('CSRHub Ratings'!$C19:$N19,'CSRD Mapping'!$C$38:$N$38) -> 49.237 | Z19: =SUMPRODUCT('CSRHub Ratings'!$C19:$N19,'CSRD Mapping'!$C$39:$N$39) -> 49.0005 | AA19: =SUMPRODUCT('CSRHub Ratings'!$C19:$N19,'CSRD Mapping'!$C$40:$N$40) -> 49.237 | AB19: =SUMPRODUCT('CSRHub Ratings'!$C19:$N19,'CSRD Mapping'!$C$41:$N$41) -> 48.6185 | AC19: =SUMPRODUCT('CSRHub Ratings'!$C19:$N19,'CSRD Mapping'!$C$42:$N$42) -> 48.6185 | AD19: =SUMPRODUCT('CSRHub Ratings'!$C19:$N19,'CSRD Mapping'!$C$43:$N$43) -> 48.6185 | AE19: =SUMPRODUCT('CSRHub Ratings'!$C19:$N19,'CSRD Mapping'!$C$44:$N$44) -> 48.6185 | AF19: =SUMPRODUCT('CSRHub Ratings'!$C19:$N19,'CSRD Mapping'!$C$45:$N$45) -> 48.6185 | AG19: =SUMPRODUCT('CSRHub Ratings'!$C19:$N19,'CSRD Mapping'!$C$46:$N$46) -> 48.6185 | AH19: =SUMPRODUCT('CSRHub Ratings'!$C19:$N19,'CSRD Mapping'!$C$47:$N$47) -> 48.6185 | AI19: =SUMPRODUCT('CSRHub Ratings'!$C19:$N19,'CSRD Mapping'!$C$48:$N$48) -> 51.3955 | AJ19: =SUMPRODUCT('CSRHub Ratings'!$C19:$N19,'CSRD Mapping'!$C$49:$N$49) -> 52.056
A20: ='Enter Company Names'!J20 -> Ford Motor Company | B20: =SUMPRODUCT('CSRHub Ratings'!$C20:$N20,'CSRD Mapping'!$C$15:$N$15) -> 59.209 | C20: =SUMPRODUCT('CSRHub Ratings'!$C20:$N20,'CSRD Mapping'!$C$16:$N$16) -> 58.736 | D20: =SUMPRODUCT('CSRHub Ratings'!$C20:$N20,'CSRD Mapping'!$C$17:$N$17) -> 58.736 | E20: =SUMPRODUCT('CSRHub Ratings'!$C20:$N20,'CSRD Mapping'!$C$18:$N$18) -> 65.652 | F20: =SUMPRODUCT('CSRHub Ratings'!$C20:$N20,'CSRD Mapping'!$C$19:$N$19) -> 65.652 | G20: =SUMPRODUCT('CSRHub Ratings'!$C20:$N20,'CSRD Mapping'!$C$20:$N$20) -> 65.652 | H20: =SUMPRODUCT('CSRHub Ratings'!$C20:$N20,'CSRD Mapping'!$C$21:$N$21) -> 55.674 | I20: =SUMPRODUCT('CSRHub Ratings'!$C20:$N20,'CSRD Mapping'!$C$22:$N$22) -> 56.411 | J20: =SUMPRODUCT('CSRHub Ratings'!$C20:$N20,'CSRD Mapping'!$C$23:$N$23) -> 56.46 | K20: =SUMPRODUCT('CSRHub Ratings'!$C20:$N20,'CSRD Mapping'!$C$24:$N$24) -> 59.012 | L20: =SUMPRODUCT('CSRHub Ratings'!$C20:$N20,'CSRD Mapping'!$C$25:$N$25) -> 56.935 | M20: =SUMPRODUCT('CSRHub Ratings'!$C20:$N20,'CSRD Mapping'!$C$26:$N$26) -> 55.94 | N20: =SUMPRODUCT('CSRHub Ratings'!$C20:$N20,'CSRD Mapping'!$C$27:$N$27) -> 62.337 | O20: =SUMPRODUCT('CSRHub Ratings'!$C20:$N20,'CSRD Mapping'!$C$28:$N$28) -> 63.494 | P20: =SUMPRODUCT('CSRHub Ratings'!$C20:$N20,'CSRD Mapping'!$C$29:$N$29) -> 63.494 | Q20: =SUMPRODUCT('CSRHub Ratings'!$C20:$N20,'CSRD Mapping'!$C$30:$N$30) -> 63.038 | R20: =SUMPRODUCT('CSRHub Ratings'!$C20:$N20,'CSRD Mapping'!$C$31:$N$31) -> 63.038 | S20: =SUMPRODUCT('CSRHub Ratings'!$C20:$N20,'CSRD Mapping'!$C$32:$N$32) -> 63.038 | T20: =SUMPRODUCT('CSRHub Ratings'!$C20:$N20,'CSRD Mapping'!$C$33:$N$33) -> 54.303 | U20: =SUMPRODUCT('CSRHub Ratings'!$C20:$N20,'CSRD Mapping'!$C$34:$N$34) -> 55.435 | V20: =SUMPRODUCT('CSRHub Ratings'!$C20:$N20,'CSRD Mapping'!$C$35:$N$35) -> 57.26 | W20: =SUMPRODUCT('CSRHub Ratings'!$C20:$N20,'CSRD Mapping'!$C$36:$N$36) -> 59.868 | X20: =SUMPRODUCT('CSRHub Ratings'!$C20:$N20,'CSRD Mapping'!$C$37:$N$37) -> 55.072 | Y20: =SUMPRODUCT('CSRHub Ratings'!$C20:$N20,'CSRD Mapping'!$C$38:$N$38) -> 63.26 | Z20: =SUMPRODUCT('CSRHub Ratings'!$C20:$N20,'CSRD Mapping'!$C$39:$N$39) -> 63.5185 | AA20: =SUMPRODUCT('CSRHub Ratings'!$C20:$N20,'CSRD Mapping'!$C$40:$N$40) -> 63.26 | AB20: =SUMPRODUCT('CSRHub Ratings'!$C20:$N20,'CSRD Mapping'!$C$41:$N$41) -> 64.456 | AC20: =SUMPRODUCT('CSRHub Ratings'!$C20:$N20,'CSRD Mapping'!$C$42:$N$42) -> 64.456 | AD20: =SUMPRODUCT('CSRHub Ratings'!$C20:$N20,'CSRD Mapping'!$C$43:$N$43) -> 64.456 | AE20: =SUMPRODUCT('CSRHub Ratings'!$C20:$N20,'CSRD Mapping'!$C$44:$N$44) -> 64.456 | AF20: =SUMPRODUCT('CSRHub Ratings'!$C20:$N20,'CSRD Mapping'!$C$45:$N$45) -> 64.456 | AG20: =SUMPRODUCT('CSRHub Ratings'!$C20:$N20,'CSRD Mapping'!$C$46:$N$46) -> 64.456 | AH20: =SUMPRODUCT('CSRHub Ratings'!$C20:$N20,'CSRD Mapping'!$C$47:$N$47) -> 64.456 | AI20: =SUMPRODUCT('CSRHub Ratings'!$C20:$N20,'CSRD Mapping'!$C$48:$N$48) -> 57.4825 | AJ20: =SUMPRODUCT('CSRHub Ratings'!$C20:$N20,'CSRD Mapping'!$C$49:$N$49) -> 57.577
A21: ='Enter Company Names'!J21 -> Hyundai Motor Co. | B21: =SUMPRODUCT('CSRHub Ratings'!$C21:$N21,'CSRD Mapping'!$C$15:$N$15) -> 58.774 | C21: =SUMPRODUCT('CSRHub Ratings'!$C21:$N21,'CSRD Mapping'!$C$16:$N$16) -> 58.25 | D21: =SUMPRODUCT('CSRHub Ratings'!$C21:$N21,'CSRD Mapping'!$C$17:$N$17) -> 58.25 | E21: =SUMPRODUCT('CSRHub Ratings'!$C21:$N21,'CSRD Mapping'!$C$18:$N$18) -> 65.514 | F21: =SUMPRODUCT('CSRHub Ratings'!$C21:$N21,'CSRD Mapping'!$C$19:$N$19) -> 65.514 | G21: =SUMPRODUCT('CSRHub Ratings'!$C21:$N21,'CSRD Mapping'!$C$20:$N$20) -> 65.514 | H21: =SUMPRODUCT('CSRHub Ratings'!$C21:$N21,'CSRD Mapping'!$C$21:$N$21) -> 54.221 | I21: =SUMPRODUCT('CSRHub Ratings'!$C21:$N21,'CSRD Mapping'!$C$22:$N$22) -> 54.6385 | J21: =SUMPRODUCT('CSRHub Ratings'!$C21:$N21,'CSRD Mapping'!$C$23:$N$23) -> 54.245 | K21: =SUMPRODUCT('CSRHub Ratings'!$C21:$N21,'CSRD Mapping'!$C$24:$N$24) -> 57.934 | L21: =SUMPRODUCT('CSRHub Ratings'!$C21:$N21,'CSRD Mapping'!$C$25:$N$25) -> 54.747 | M21: =SUMPRODUCT('CSRHub Ratings'!$C21:$N21,'CSRD Mapping'!$C$26:$N$26) -> 53.817 | N21: =SUMPRODUCT('CSRHub Ratings'!$C21:$N21,'CSRD Mapping'!$C$27:$N$27) -> 64.038 | O21: =SUMPRODUCT('CSRHub Ratings'!$C21:$N21,'CSRD Mapping'!$C$28:$N$28) -> 64.654 | P21: =SUMPRODUCT('CSRHub Ratings'!$C21:$N21,'CSRD Mapping'!$C$29:$N$29) -> 64.654 | Q21: =SUMPRODUCT('CSRHub Ratings'!$C21:$N21,'CSRD Mapping'!$C$30:$N$30) -> 61.204 | R21: =SUMPRODUCT('CSRHub Ratings'!$C21:$N21,'CSRD Mapping'!$C$31:$N$31) -> 61.204 | S21: =SUMPRODUCT('CSRHub Ratings'!$C21:$N21,'CSRD Mapping'!$C$32:$N$32) -> 61.204 | T21: =SUMPRODUCT('CSRHub Ratings'!$C21:$N21,'CSRD Mapping'!$C$33:$N$33) -> 56.894 | U21: =SUMPRODUCT('CSRHub Ratings'!$C21:$N21,'CSRD Mapping'!$C$34:$N$34) -> 57.024 | V21: =SUMPRODUCT('CSRHub Ratings'!$C21:$N21,'CSRD Mapping'!$C$35:$N$35) -> 59.046 | W21: =SUMPRODUCT('CSRHub Ratings'!$C21:$N21,'CSRD Mapping'!$C$36:$N$36) -> 60.742 | X21: =SUMPRODUCT('CSRHub Ratings'!$C21:$N21,'CSRD Mapping'!$C$37:$N$37) -> 57.504 | Y21: =SUMPRODUCT('CSRHub Ratings'!$C21:$N21,'CSRD Mapping'!$C$38:$N$38) -> 64.096 | Z21: =SUMPRODUCT('CSRHub Ratings'!$C21:$N21,'CSRD Mapping'!$C$39:$N$39) -> 62.597 | AA21: =SUMPRODUCT('CSRHub Ratings'!$C21:$N21,'CSRD Mapping'!$C$40:$N$40) -> 64.096 | AB21: =SUMPRODUCT('CSRHub Ratings'!$C21:$N21,'CSRD Mapping'!$C$41:$N$41) -> 64.805 | AC21: =SUMPRODUCT('CSRHub Ratings'!$C21:$N21,'CSRD Mapping'!$C$42:$N$42) -> 64.805 | AD21: =SUMPRODUCT('CSRHub Ratings'!$C21:$N21,'CSRD Mapping'!$C$43:$N$43) -> 64.805 | AE21: =SUMPRODUCT('CSRHub Ratings'!$C21:$N21,'CSRD Mapping'!$C$44:$N$44) -> 64.805 | AF21: =SUMPRODUCT('CSRHub Ratings'!$C21:$N21,'CSRD Mapping'!$C$45:$N$45) -> 64.805 | AG21: =SUMPRODUCT('CSRHub Ratings'!$C21:$N21,'CSRD Mapping'!$C$46:$N$46) -> 64.805 | AH21: =SUMPRODUCT('CSRHub Ratings'!$C21:$N21,'CSRD Mapping'!$C$47:$N$47) -> 64.805 | AI21: =SUMPRODUCT('CSRHub Ratings'!$C21:$N21,'CSRD Mapping'!$C$48:$N$48) -> 59.1885 | AJ21: =SUMPRODUCT('CSRHub Ratings'!$C21:$N21,'CSRD Mapping'!$C$49:$N$49) -> 59.368
A22: ='Enter Company Names'!J22 -> Kia Motors Corporation | B22: =SUMPRODUCT('CSRHub Ratings'!$C22:$N22,'CSRD Mapping'!$C$15:$N$15) -> 56.571 | C22: =SUMPRODUCT('CSRHub Ratings'!$C22:$N22,'CSRD Mapping'!$C$16:$N$16) -> 55.935 | D22: =SUMPRODUCT('CSRHub Ratings'!$C22:$N22,'CSRD Mapping'!$C$17:$N$17) -> 55.935 | E22: =SUMPRODUCT('CSRHub Ratings'!$C22:$N22,'CSRD Mapping'!$C$18:$N$18) -> 64.432 | F22: =SUMPRODUCT('CSRHub Ratings'!$C22:$N22,'CSRD Mapping'!$C$19:$N$19) -> 64.432 | G22: =SUMPRODUCT('CSRHub Ratings'!$C22:$N22,'CSRD Mapping'!$C$20:$N$20) -> 64.432 | H22: =SUMPRODUCT('CSRHub Ratings'!$C22:$N22,'CSRD Mapping'!$C$21:$N$21) -> 53.358 | I22: =SUMPRODUCT('CSRHub Ratings'!$C22:$N22,'CSRD Mapping'!$C$22:$N$22) -> 54.118 | J22: =SUMPRODUCT('CSRHub Ratings'!$C22:$N22,'CSRD Mapping'!$C$23:$N$23) -> 53.84 | K22: =SUMPRODUCT('CSRHub Ratings'!$C22:$N22,'CSRD Mapping'!$C$24:$N$24) -> 56.75 | L22: =SUMPRODUCT('CSRHub Ratings'!$C22:$N22,'CSRD Mapping'!$C$25:$N$25) -> 54.545 | M22: =SUMPRODUCT('CSRHub Ratings'!$C22:$N22,'CSRD Mapping'!$C$26:$N$26) -> 53.008 | N22: =SUMPRODUCT('CSRHub Ratings'!$C22:$N22,'CSRD Mapping'!$C$27:$N$27) -> 62.528 | O22: =SUMPRODUCT('CSRHub Ratings'!$C22:$N22,'CSRD Mapping'!$C$28:$N$28) -> 63.218 | P22: =SUMPRODUCT('CSRHub Ratings'!$C22:$N22,'CSRD Mapping'!$C$29:$N$29) -> 63.218 | Q22: =SUMPRODUCT('CSRHub Ratings'!$C22:$N22,'CSRD Mapping'!$C$30:$N$30) -> 59.668 | R22: =SUMPRODUCT('CSRHub Ratings'!$C22:$N22,'CSRD Mapping'!$C$31:$N$31) -> 59.668 | S22: =SUMPRODUCT('CSRHub Ratings'!$C22:$N22,'CSRD Mapping'!$C$32:$N$32) -> 59.668 | T22: =SUMPRODUCT('CSRHub Ratings'!$C22:$N22,'CSRD Mapping'!$C$33:$N$33) -> 55.827 | U22: =SUMPRODUCT('CSRHub Ratings'!$C22:$N22,'CSRD Mapping'!$C$34:$N$34) -> 55.867 | V22: =SUMPRODUCT('CSRHub Ratings'!$C22:$N22,'CSRD Mapping'!$C$35:$N$35) -> 57.074 | W22: =SUMPRODUCT('CSRHub Ratings'!$C22:$N22,'CSRD Mapping'!$C$36:$N$36) -> 59.342 | X22: =SUMPRODUCT('CSRHub Ratings'!$C22:$N22,'CSRD Mapping'!$C$37:$N$37) -> 56.35 | Y22: =SUMPRODUCT('CSRHub Ratings'!$C22:$N22,'CSRD Mapping'!$C$38:$N$38) -> 62.969 | Z22: =SUMPRODUCT('CSRHub Ratings'!$C22:$N22,'CSRD Mapping'!$C$39:$N$39) -> 61.2995 | AA22: =SUMPRODUCT('CSRHub Ratings'!$C22:$N22,'CSRD Mapping'!$C$40:$N$40) -> 62.969 | AB22: =SUMPRODUCT('CSRHub Ratings'!$C22:$N22,'CSRD Mapping'!$C$41:$N$41) -> 63.7005 | AC22: =SUMPRODUCT('CSRHub Ratings'!$C22:$N22,'CSRD Mapping'!$C$42:$N$42) -> 63.7005 | AD22: =SUMPRODUCT('CSRHub Ratings'!$C22:$N22,'CSRD Mapping'!$C$43:$N$43) -> 63.7005 | AE22: =SUMPRODUCT('CSRHub Ratings'!$C22:$N22,'CSRD Mapping'!$C$44:$N$44) -> 63.7005 | AF22: =SUMPRODUCT('CSRHub Ratings'!$C22:$N22,'CSRD Mapping'!$C$45:$N$45) -> 63.7005 | AG22: =SUMPRODUCT('CSRHub Ratings'!$C22:$N22,'CSRD Mapping'!$C$46:$N$46) -> 63.7005 | AH22: =SUMPRODUCT('CSRHub Ratings'!$C22:$N22,'CSRD Mapping'!$C$47:$N$47) -> 63.7005 | AI22: =SUMPRODUCT('CSRHub Ratings'!$C22:$N22,'CSRD Mapping'!$C$48:$N$48) -> 57.9745 | AJ22: =SUMPRODUCT('CSRHub Ratings'!$C22:$N22,'CSRD Mapping'!$C$49:$N$49) -> 58.125
A23: ='Enter Company Names'!J23 -> BMW | B23: =SUMPRODUCT('CSRHub Ratings'!$C23:$N23,'CSRD Mapping'!$C$15:$N$15) -> 58.415 | C23: =SUMPRODUCT('CSRHub Ratings'!$C23:$N23,'CSRD Mapping'!$C$16:$N$16) -> 58.024 | D23: =SUMPRODUCT('CSRHub Ratings'!$C23:$N23,'CSRD Mapping'!$C$17:$N$17) -> 58.024 | E23: =SUMPRODUCT('CSRHub Ratings'!$C23:$N23,'CSRD Mapping'!$C$18:$N$18) -> 63.97 | F23: =SUMPRODUCT('CSRHub Ratings'!$C23:$N23,'CSRD Mapping'!$C$19:$N$19) -> 63.97 | G23: =SUMPRODUCT('CSRHub Ratings'!$C23:$N23,'CSRD Mapping'!$C$20:$N$20) -> 63.97 | H23: =SUMPRODUCT('CSRHub Ratings'!$C23:$N23,'CSRD Mapping'!$C$21:$N$21) -> 53.129 | I23: =SUMPRODUCT('CSRHub Ratings'!$C23:$N23,'CSRD Mapping'!$C$22:$N$22) -> 52.5815 | J23: =SUMPRODUCT('CSRHub Ratings'!$C23:$N23,'CSRD Mapping'!$C$23:$N$23) -> 52.195 | K23: =SUMPRODUCT('CSRHub Ratings'!$C23:$N23,'CSRD Mapping'!$C$24:$N$24) -> 56.594 | L23: =SUMPRODUCT('CSRHub Ratings'!$C23:$N23,'CSRD Mapping'!$C$25:$N$25) -> 51.925 | M23: =SUMPRODUCT('CSRHub Ratings'!$C23:$N23,'CSRD Mapping'!$C$26:$N$26) -> 52.863 | N23: =SUMPRODUCT('CSRHub Ratings'!$C23:$N23,'CSRD Mapping'!$C$27:$N$27) -> 62.069 | O23: =SUMPRODUCT('CSRHub Ratings'!$C23:$N23,'CSRD Mapping'!$C$28:$N$28) -> 62.806 | P23: =SUMPRODUCT('CSRHub Ratings'!$C23:$N23,'CSRD Mapping'!$C$29:$N$29) -> 62.806 | Q23: =SUMPRODUCT('CSRHub Ratings'!$C23:$N23,'CSRD Mapping'!$C$30:$N$30) -> 62.441 | R23: =SUMPRODUCT('CSRHub Ratings'!$C23:$N23,'CSRD Mapping'!$C$31:$N$31) -> 62.441 | S23: =SUMPRODUCT('CSRHub Ratings'!$C23:$N23,'CSRD Mapping'!$C$32:$N$32) -> 62.441 | T23: =SUMPRODUCT('CSRHub Ratings'!$C23:$N23,'CSRD Mapping'!$C$33:$N$33) -> 54.639 | U23: =SUMPRODUCT('CSRHub Ratings'!$C23:$N23,'CSRD Mapping'!$C$34:$N$34) -> 54.697 | V23: =SUMPRODUCT('CSRHub Ratings'!$C23:$N23,'CSRD Mapping'!$C$35:$N$35) -> 57.8 | W23: =SUMPRODUCT('CSRHub Ratings'!$C23:$N23,'CSRD Mapping'!$C$36:$N$36) -> 59.496 | X23: =SUMPRODUCT('CSRHub Ratings'!$C23:$N23,'CSRD Mapping'!$C$37:$N$37) -> 55.624 | Y23: =SUMPRODUCT('CSRHub Ratings'!$C23:$N23,'CSRD Mapping'!$C$38:$N$38) -> 62.341 | Z23: =SUMPRODUCT('CSRHub Ratings'!$C23:$N23,'CSRD Mapping'!$C$39:$N$39) -> 62.606 | AA23: =SUMPRODUCT('CSRHub Ratings'!$C23:$N23,'CSRD Mapping'!$C$40:$N$40) -> 62.341 | AB23: =SUMPRODUCT('CSRHub Ratings'!$C23:$N23,'CSRD Mapping'!$C$41:$N$41) -> 63.1555 | AC23: =SUMPRODUCT('CSRHub Ratings'!$C23:$N23,'CSRD Mapping'!$C$42:$N$42) -> 63.1555 | AD23: =SUMPRODUCT('CSRHub Ratings'!$C23:$N23,'CSRD Mapping'!$C$43:$N$43) -> 63.1555 | AE23: =SUMPRODUCT('CSRHub Ratings'!$C23:$N23,'CSRD Mapping'!$C$44:$N$44) -> 63.1555 | AF23: =SUMPRODUCT('CSRHub Ratings'!$C23:$N23,'CSRD Mapping'!$C$45:$N$45) -> 63.1555 | AG23: =SUMPRODUCT('CSRHub Ratings'!$C23:$N23,'CSRD Mapping'!$C$46:$N$46) -> 63.1555 | AH23: =SUMPRODUCT('CSRHub Ratings'!$C23:$N23,'CSRD Mapping'!$C$47:$N$47) -> 63.1555 | AI23: =SUMPRODUCT('CSRHub Ratings'!$C23:$N23,'CSRD Mapping'!$C$48:$N$48) -> 57.545 | AJ23: =SUMPRODUCT('CSRHub Ratings'!$C23:$N23,'CSRD Mapping'!$C$49:$N$49) -> 57.48
A24: ='Enter Company Names'!J24 -> NISSAN MOTOR CO.,LTD. | B24: =SUMPRODUCT('CSRHub Ratings'!$C24:$N24,'CSRD Mapping'!$C$15:$N$15) -> 56.874 | C24: =SUMPRODUCT('CSRHub Ratings'!$C24:$N24,'CSRD Mapping'!$C$16:$N$16) -> 56.297 | D24: =SUMPRODUCT('CSRHub Ratings'!$C24:$N24,'CSRD Mapping'!$C$17:$N$17) -> 56.297 | E24: =SUMPRODUCT('CSRHub Ratings'!$C24:$N24,'CSRD Mapping'!$C$18:$N$18) -> 65 | F24: =SUMPRODUCT('CSRHub Ratings'!$C24:$N24,'CSRD Mapping'!$C$19:$N$19) -> 65 | G24: =SUMPRODUCT('CSRHub Ratings'!$C24:$N24,'CSRD Mapping'!$C$20:$N$20) -> 65 | H24: =SUMPRODUCT('CSRHub Ratings'!$C24:$N24,'CSRD Mapping'!$C$21:$N$21) -> 53.247 | I24: =SUMPRODUCT('CSRHub Ratings'!$C24:$N24,'CSRD Mapping'!$C$22:$N$22) -> 53.9395 | J24: =SUMPRODUCT('CSRHub Ratings'!$C24:$N24,'CSRD Mapping'!$C$23:$N$23) -> 53.805 | K24: =SUMPRODUCT('CSRHub Ratings'!$C24:$N24,'CSRD Mapping'!$C$24:$N$24) -> 56.51 | L24: =SUMPRODUCT('CSRHub Ratings'!$C24:$N24,'CSRD Mapping'!$C$25:$N$25) -> 54.245 | M24: =SUMPRODUCT('CSRHub Ratings'!$C24:$N24,'CSRD Mapping'!$C$26:$N$26) -> 53.169 | N24: =SUMPRODUCT('CSRHub Ratings'!$C24:$N24,'CSRD Mapping'!$C$27:$N$27) -> 61.539 | O24: =SUMPRODUCT('CSRHub Ratings'!$C24:$N24,'CSRD Mapping'!$C$28:$N$28) -> 62.646 | P24: =SUMPRODUCT('CSRHub Ratings'!$C24:$N24,'CSRD Mapping'!$C$29:$N$29) -> 62.646 | Q24: =SUMPRODUCT('CSRHub Ratings'!$C24:$N24,'CSRD Mapping'!$C$30:$N$30) -> 63.173 | R24: =SUMPRODUCT('CSRHub Ratings'!$C24:$N24,'CSRD Mapping'!$C$31:$N$31) -> 63.173 | S24: =SUMPRODUCT('CSRHub Ratings'!$C24:$N24,'CSRD Mapping'!$C$32:$N$32) -> 63.173 | T24: =SUMPRODUCT('CSRHub Ratings'!$C24:$N24,'CSRD Mapping'!$C$33:$N$33) -> 53.962 | U24: =SUMPRODUCT('CSRHub Ratings'!$C24:$N24,'CSRD Mapping'!$C$34:$N$34) -> 53.976 | V24: =SUMPRODUCT('CSRHub Ratings'!$C24:$N24,'CSRD Mapping'!$C$35:$N$35) -> 56.066 | W24: =SUMPRODUCT('CSRHub Ratings'!$C24:$N24,'CSRD Mapping'!$C$36:$N$36) -> 57.94 | X24: =SUMPRODUCT('CSRHub Ratings'!$C24:$N24,'CSRD Mapping'!$C$37:$N$37) -> 54.142 | Y24: =SUMPRODUCT('CSRHub Ratings'!$C24:$N24,'CSRD Mapping'!$C$38:$N$38) -> 62.856 | Z24: =SUMPRODUCT('CSRHub Ratings'!$C24:$N24,'CSRD Mapping'!$C$39:$N$39) -> 63.4575 | AA24: =SUMPRODUCT('CSRHub Ratings'!$C24:$N24,'CSRD Mapping'!$C$40:$N$40) -> 62.856 | AB24: =SUMPRODUCT('CSRHub Ratings'!$C24:$N24,'CSRD Mapping'!$C$41:$N$41) -> 63.928 | AC24: =SUMPRODUCT('CSRHub Ratings'!$C24:$N24,'CSRD Mapping'!$C$42:$N$42) -> 63.928 | AD24: =SUMPRODUCT('CSRHub Ratings'!$C24:$N24,'CSRD Mapping'!$C$43:$N$43) -> 63.928 | AE24: =SUMPRODUCT('CSRHub Ratings'!$C24:$N24,'CSRD Mapping'!$C$44:$N$44) -> 63.928 | AF24: =SUMPRODUCT('CSRHub Ratings'!$C24:$N24,'CSRD Mapping'!$C$45:$N$45) -> 63.928 | AG24: =SUMPRODUCT('CSRHub Ratings'!$C24:$N24,'CSRD Mapping'!$C$46:$N$46) -> 63.928 | AH24: =SUMPRODUCT('CSRHub Ratings'!$C24:$N24,'CSRD Mapping'!$C$47:$N$47) -> 63.928 | AI24: =SUMPRODUCT('CSRHub Ratings'!$C24:$N24,'CSRD Mapping'!$C$48:$N$48) -> 56.4445 | AJ24: =SUMPRODUCT('CSRHub Ratings'!$C24:$N24,'CSRD Mapping'!$C$49:$N$49) -> 57.253

Sheet CSRD Mapping
B7: CSRHub CSRD Mapping
B8: Below is a mapping of CSRHub data to CSRD. The model was developed by our partner Valutus, under the title "Materiality Matters." You can learn more about Valutus and its work here https://valutus.com/.
B11: Reach out to CSRHub to request a custom mapping.
B14: CSRD Description | C14: Community Dev & Philanthropy | D14: Human Rights & Supply Chain | E14: Product | F14: Compensation & Benefits | G14: Diversity & Labor Rights | H14: Training, Health & Safety | I14: Energy & Climate Change | J14: Environment Policy & Reporting | K14: Resource Management | L14: Board | M14: Leadership Ethics | N14: Transparency & Reporting
B15: Affected communities - Communities’ civil and political rights | C15: 0.6 | D15: 0.3 | M15: 0.1
B16: Affected communities - Communities' economic social and cultural rights | C16: 0.7 | D16: 0.2 | M16: 0.1
B17: Affected communities - Rights of indigenous peoples | C17: 0.7 | D17: 0.2 | M17: 0.1
B18: Biodiversity and ecosystems - Impacts and dependencies on ecosystem services | J18: 0.6 | K18: 0.4
B19: Biodiversity and ecosystems - Impacts on the extent and condition of ecosystems | J19: 0.6 | K19: 0.4
B20: Biodiversity and ecosystems - Impacts on the state of species | J20: 0.6 | K20: 0.4
B21: Business Conduct - Animal welfare | H21: 0.1 | M21: 0.8 | N21: 0.1
B22: Business Conduct - Corporate culture | G22: 0.1 | L22: 0.45 | M22: 0.45
B23: Business Conduct - Corruption and bribery | L23: 0.5 | M23: 0.5
B24: Business Conduct - Management of relationships with suppliers including payment practices | D24: 0.4 | M24: 0.4 | N24: 0.2
B25: Business Conduct - Political engagement | L25: 0.7 | M25: 0.2 | N25: 0.1
B26: Business Conduct - Protection of whistleblowers | L26: 0.1 | M26: 0.9
B27: Circular economy - Resource outflows, related to products and services | E27: 0.3 | J27: 0.1 | K27: 0.6
B28: Circular economy - Resources inflows, including resource use | E28: 0.2 | J28: 0.2 | K28: 0.6
B29: Circular economy - Waste | E29: 0.2 | J29: 0.2 | K29: 0.6
B30: Climate change - Climate change adaptation | I30: 0.7 | J30: 0.2 | K30: 0.1
B31: Climate change - Climate change mitigation | I31: 0.7 | J31: 0.2 | K31: 0.1
B32: Climate change - Energy | I32: 0.7 | J32: 0.2 | K32: 0.1
B33: Consumers and end-users - Health and safety of consumers and/or end-users | E33: 0.5 | H33: 0.2 | M33: 0.2 | N33: 0.1
B34: Consumers and end-users - Information-related impacts for consumers and/or end-users | E34: 0.5 | M34: 0.2 | N34: 0.3
B35: Consumers and end-users - Social inclusion of consumers and/or end-users | C35: 0.4 | D35: 0.2 | E35: 0.4
B36: Own workforce - Equal treatment and opportunities for all | D36: 0.6 | F36: 0.2 | G36: 0.2
B37: Own workforce - Working conditions (overall) | F37: 0.2 | G37: 0.6 | H37: 0.2
B38: Pollution - Microplastics | E38: 0.2 | J38: 0.5 | K38: 0.3
B39: Pollution - Pollution of air | E39: 0.05 | I39: 0.4 | J39: 0.4 | K39: 0.15
B40: Pollution - Pollution of living organisms and food resources | E40: 0.2 | J40: 0.5 | K40: 0.3
B41: Pollution - Pollution of soil | E41: 0.1 | J41: 0.55 | K41: 0.35
B42: Pollution - Pollution of water | E42: 0.1 | J42: 0.55 | K42: 0.35
B43: Pollution - Substances of concern | E43: 0.1 | J43: 0.55 | K43: 0.35
B44: Pollution - Substances of very high concern | E44: 0.1 | J44: 0.55 | K44: 0.35
B45: Water and marine resources - Direct impact drivers of biodiversity loss | E45: 0.1 | J45: 0.55 | K45: 0.35
B46: Water and marine resources - Marine resources | E46: 0.1 | J46: 0.55 | K46: 0.35
B47: Water and marine resources - Water | E47: 0.1 | J47: 0.55 | K47: 0.35
B48: Workers in the Value Chain - Equal treatment and opportunities for all | D48: 0.35 | F48: 0.15 | G48: 0.3 | H48: 0.2
B49: Workers in the Value Chain - Working conditions (overall) | D49: 0.4 | G49: 0.3 | H49: 0.3
